[Event "Titled Tuesday Blitz April 4 Early 2023"]
[White "Acikel, Mert"]
[Black "Krzywda, Andrzej"]
[WhiteFideId "12956465"]
[BlackFideId "1114565"]
[WhiteElo "2097"]
[BlackElo "2155"]
[Result "0-1"]
[Round "09"]
[TimeControl "180+2"]
[Date "2023.04.04"]
[WhiteClock "0:00:02"]
[BlackClock "0:00:30"]

1. e4 {[%clk 0:01:28]}  c6 {[%clk 0:02:58]} 2. Nc3 {[%clk 0:01:27]}  d5 {[%clk 0:02:58]} 3. Nf3 {[%clk 0:01:28]}  dxe4 {[%clk 0:02:58]} 4. Nxe4 {[%clk 0:01:28]}  Nf6 {[%clk 0:02:58]} 5. Qe2 {[%clk 0:01:29]}  Nxe4 {[%clk 0:02:53]} 6. Qxe4 {[%clk 0:01:29]}  Nd7 {[%clk 0:02:45]} 7. Bc4 {[%clk 0:01:29]}  Nf6 {[%clk 0:02:44]} 8. Ne5 {[%clk 0:01:29]}  e6 {[%clk 0:02:44]} 9. Qe2 {[%clk 0:01:29]}  Qc7 {[%clk 0:02:36]} 10. O-O {[%clk 0:01:24]}  Bd6 {[%clk 0:02:32]} 11. d4 {[%clk 0:01:24]}  O-O {[%clk 0:02:28]} 12. Re1 {[%clk 0:01:23]}  b5 {[%clk 0:02:26]} 13. Bd3 {[%clk 0:01:23]}  Bb7 {[%clk 0:02:12]} 14. Bg5 {[%clk 0:01:04]}  Be7 {[%clk 0:02:09]} 15. Rad1 {[%clk 0:01:02]}  a6 {[%clk 0:02:00]} 16. c3 {[%clk 0:01:00]}  c5 {[%clk 0:01:57]} 17. dxc5 {[%clk 0:00:59]}  Qxc5 {[%clk 0:01:48]} 18. Bxf6 {[%clk 0:00:58]}  Bxf6 {[%clk 0:01:47]} 19. Nd7 {[%clk 0:00:58]}  Qc6 {[%clk 0:01:47]} 20. Nxf6+ {[%clk 0:00:59]}  gxf6 {[%clk 0:01:47]} 21. Be4 {[%clk 0:00:59]}  Qxe4 {[%clk 0:01:42]} 22. Qxe4 {[%clk 0:00:59]}  Bxe4 {[%clk 0:01:42]} 23. Rxe4 {[%clk 0:01:00]}  Ra7 {[%clk 0:01:27]} 24. Rd6 {[%clk 0:00:57]}  Rc8 {[%clk 0:01:22]} 25. Red4 {[%clk 0:00:53]}  Kg7 {[%clk 0:01:23]} 26. Rb6 {[%clk 0:00:53]}  f5 {[%clk 0:01:07]} 27. h4 {[%clk 0:00:50]}  Kf6 {[%clk 0:01:07]} 28. Rdd6 {[%clk 0:00:50]}  Rca8 {[%clk 0:01:07]} 29. g3 {[%clk 0:00:50]}  Ke5 {[%clk 0:01:06]} 30. Kg2 {[%clk 0:00:50]}  f4 {[%clk 0:01:05]} 31. Rdc6 {[%clk 0:00:44]}  fxg3 {[%clk 0:01:02]} 32. fxg3 {[%clk 0:00:43]}  Rd7 {[%clk 0:00:58]} 33. Rxa6 {[%clk 0:00:22]}  Rxa6 {[%clk 0:00:59]} 34. Rxa6 {[%clk 0:00:22]}  Rd2+ {[%clk 0:00:59]} 35. Kf3 {[%clk 0:00:21]}  Rxb2 {[%clk 0:01:00]} 36. Ra7 {[%clk 0:00:17]}  f5 {[%clk 0:00:49]} 37. a4 {[%clk 0:00:15]}  bxa4 {[%clk 0:00:46]} 38. Rxa4 {[%clk 0:00:15]}  Rc2 {[%clk 0:00:46]} 39. c4 {[%clk 0:00:13]}  Kd4 {[%clk 0:00:44]} 40. Ra7 {[%clk 0:00:13]}  e5 {[%clk 0:00:41]} 41. Rxh7 {[%clk 0:00:11]}  Rc3+ {[%clk 0:00:41]} 42. Kg2 {[%clk 0:00:11]}  Rxc4 {[%clk 0:00:41]} 43. Rf7 {[%clk 0:00:07]}  Ke4 {[%clk 0:00:41]} 44. h5 {[%clk 0:00:07]}  Rc6 {[%clk 0:00:41]} 45. Rh7 {[%clk 0:00:06]}  Rc2+ {[%clk 0:00:37]} 46. Kh3 {[%clk 0:00:06]}  Kf3 {[%clk 0:00:38]} 47. Rf7 {[%clk 0:00:06]}  f4 {[%clk 0:00:38]} 48. h6 {[%clk 0:00:06]}  Rc1 {[%clk 0:00:37]} 49. Kh4 {[%clk 0:00:04]}  Rh1+ {[%clk 0:00:31]} 50. Kg5 {[%clk 0:00:05]}  Kxg3 {[%clk 0:00:31]} 51. h7 {[%clk 0:00:03]}  f3 {[%clk 0:00:31]} 52. Kf5 {[%clk 0:00:02]}  f2 {[%clk 0:00:30]} 53. Kxe5 {[%clk 0:00:02]}  Rxh7 {[%clk 0:00:29]} 54. Rxh7 {[%clk 0:00:02]}  f1=Q {[%clk 0:00:29]} 55. Rg7+ {[%clk 0:00:02]}  Kh4 {[%clk 0:00:30]} 0-1


[Site "https://www.chess.com"]

[Event "Titled Tuesday Blitz April 4 Early 2023"]
[White "Shukhman, Anna"]
[Black "Semenova, Alina"]
[WhiteFideId "54180058"]
[BlackFideId "24113875"]
[WhiteElo "2125"]
[BlackElo "1833"]
[Result "1-0"]
[Round "09"]
[TimeControl "180+2"]
[Date "2023.04.04"]
[WhiteClock "0:01:20"]
[BlackClock "0:00:02"]

1. e4 {[%clk 0:03:00]}  e5 {[%clk 0:02:58]} 2. Nf3 {[%clk 0:03:00]}  Nf6 {[%clk 0:02:58]} 3. Nxe5 {[%clk 0:02:59]}  d6 {[%clk 0:02:59]} 4. Nf3 {[%clk 0:02:59]}  Nxe4 {[%clk 0:03:00]} 5. Bd3 {[%clk 0:02:59]}  d5 {[%clk 0:02:57]} 6. O-O {[%clk 0:02:58]}  Be7 {[%clk 0:02:54]} 7. Re1 {[%clk 0:02:58]}  Nc5 {[%clk 0:02:53]} 8. Bf1 {[%clk 0:02:58]}  O-O {[%clk 0:02:53]} 9. d4 {[%clk 0:02:58]}  Ne4 {[%clk 0:02:52]} 10. c4 {[%clk 0:02:57]}  c6 {[%clk 0:02:52]} 11. Nc3 {[%clk 0:02:55]}  Nxc3 {[%clk 0:02:50]} 12. bxc3 {[%clk 0:02:56]}  Bf6 {[%clk 0:02:49]} 13. h3 {[%clk 0:02:37]}  Bf5 {[%clk 0:02:48]} 14. g4 {[%clk 0:02:36]}  Be4 {[%clk 0:02:38]} 15. Bd3 {[%clk 0:02:35]}  Bxd3 {[%clk 0:02:34]} 16. Qxd3 {[%clk 0:02:35]}  Nd7 {[%clk 0:02:34]} 17. Ba3 {[%clk 0:02:08]}  Re8 {[%clk 0:02:23]} 18. Rxe8+ {[%clk 0:02:05]}  Qxe8 {[%clk 0:02:23]} 19. Re1 {[%clk 0:02:06]}  Qd8 {[%clk 0:02:16]} 20. cxd5 {[%clk 0:02:02]}  cxd5 {[%clk 0:02:15]} 21. Qf5 {[%clk 0:02:02]}  g6 {[%clk 0:02:10]} 22. Qxd5 {[%clk 0:02:00]}  Ne5 {[%clk 0:02:09]} 23. Rxe5 {[%clk 0:01:56]}  Bxe5 {[%clk 0:02:02]} 24. Qxe5 {[%clk 0:01:57]}  Rc8 {[%clk 0:01:49]} 25. Bb2 {[%clk 0:01:44]}  Qb6 {[%clk 0:01:47]} 26. Qe2 {[%clk 0:01:41]}  Qa5 {[%clk 0:01:33]} 27. c4 {[%clk 0:01:36]}  Qxa2 {[%clk 0:01:32]} 28. d5 {[%clk 0:01:31]}  Rf8 {[%clk 0:00:32]} 29. d6 {[%clk 0:01:25]}  f6 {[%clk 0:00:08]} 30. d7 {[%clk 0:01:24]}  Qa5 {[%clk 0:00:02]} 31. Qe6+ {[%clk 0:01:22]}  Kg7 {[%clk 0:00:02]} 32. Qe7+ {[%clk 0:01:22]}  Rf7 {[%clk 0:00:02]} 33. Bxf6+ {[%clk 0:01:21]}  Kh6 {[%clk 0:00:01]} 34. Qxf7 {[%clk 0:01:21]}  Qe1+ {[%clk 0:00:02]} 35. Nxe1 {[%clk 0:01:20]} 1-0


[Site "https://www.chess.com"]

[Event "Titled Tuesday Blitz April 4 Early 2023"]
[White "Zampronha, Wladimir Camilo"]
[Black "Rodchenkov, Sergey D."]
[WhiteFideId "2103087"]
[BlackFideId "4168712"]
[WhiteElo "2176"]
[BlackElo "2277"]
[Result "0-1"]
[Round "09"]
[TimeControl "180+2"]
[Date "2023.04.04"]
[WhiteClock "0:00:02"]
[BlackClock "0:00:16"]

1. e4 {[%clk 0:03:00]}  c5 {[%clk 0:02:59]} 2. Nf3 {[%clk 0:03:01]}  d6 {[%clk 0:02:59]} 3. d4 {[%clk 0:03:02]}  cxd4 {[%clk 0:03:00]} 4. Nxd4 {[%clk 0:03:02]}  Nf6 {[%clk 0:03:01]} 5. Nc3 {[%clk 0:03:02]}  a6 {[%clk 0:03:01]} 6. Bg5 {[%clk 0:03:02]}  e6 {[%clk 0:03:01]} 7. f4 {[%clk 0:03:02]}  h6 {[%clk 0:03:01]} 8. Bh4 {[%clk 0:03:00]}  Qb6 {[%clk 0:03:02]} 9. Qd2 {[%clk 0:02:56]}  Qxb2 {[%clk 0:03:00]} 10. Rb1 {[%clk 0:02:55]}  Qa3 {[%clk 0:03:00]} 11. e5 {[%clk 0:02:37]}  dxe5 {[%clk 0:03:00]} 12. fxe5 {[%clk 0:02:38]}  Nfd7 {[%clk 0:03:00]} 13. Be2 {[%clk 0:02:25]}  Be7 {[%clk 0:02:20]} 14. Bxe7 {[%clk 0:02:14]}  Qxe7 {[%clk 0:02:21]} 15. Nf3 {[%clk 0:02:09]}  O-O {[%clk 0:02:18]} 16. O-O {[%clk 0:02:10]}  Nc6 {[%clk 0:02:18]} 17. Qe3 {[%clk 0:02:08]}  Qc5 {[%clk 0:02:04]} 18. Qxc5 {[%clk 0:02:08]}  Nxc5 {[%clk 0:02:05]} 19. Rfd1 {[%clk 0:02:07]}  Nd7 {[%clk 0:02:02]} 20. Ne4 {[%clk 0:02:01]}  Ndxe5 {[%clk 0:02:01]} 21. Nxe5 {[%clk 0:02:02]}  Nxe5 {[%clk 0:02:02]} 22. Nd6 {[%clk 0:01:59]}  Rb8 {[%clk 0:01:56]} 23. c4 {[%clk 0:01:53]}  Rd8 {[%clk 0:01:37]} 24. c5 {[%clk 0:01:53]}  Kf8 {[%clk 0:01:31]} 25. Kf2 {[%clk 0:01:44]}  Ke7 {[%clk 0:01:30]} 26. Ke3 {[%clk 0:01:41]}  b5 {[%clk 0:01:19]} 27. a4 {[%clk 0:01:37]}  b4 {[%clk 0:01:00]} 28. a5 {[%clk 0:01:28]}  b3 {[%clk 0:00:53]} 29. Rdc1 {[%clk 0:00:48]}  Nc6 {[%clk 0:00:39]} 30. Nxc8+ {[%clk 0:00:41]}  Rdxc8 {[%clk 0:00:39]} 31. Bxa6 {[%clk 0:00:41]}  Rd8 {[%clk 0:00:40]} 32. Be2 {[%clk 0:00:16]}  Nd4 {[%clk 0:00:23]} 33. a6 {[%clk 0:00:14]}  Ra8 {[%clk 0:00:20]} 34. Bf1 {[%clk 0:00:10]}  e5 {[%clk 0:00:18]} 35. c6 {[%clk 0:00:09]}  Rdc8 {[%clk 0:00:18]} 36. Rc5 {[%clk 0:00:07]}  Kd6 {[%clk 0:00:17]} 37. Ra5 {[%clk 0:00:02]}  Rxc6 {[%clk 0:00:16]} 38. a7 {[%clk 0:00:02]}  Rc7 {[%clk 0:00:15]} 39. Rba1 {[%clk 0:00:02]}  b2 {[%clk 0:00:15]} 40. Rb1 {[%clk 0:00:02]}  Rcxa7 {[%clk 0:00:14]} 41. Rxa7 {[%clk 0:00:01]}  Rxa7 {[%clk 0:00:15]} 42. Rxb2 {[%clk 0:00:02]}  Ra3+ {[%clk 0:00:16]} 43. Ke4 {[%clk 0:00:02]}  f5# {[%clk 0:00:16]} 0-1


[Site "https://www.chess.com"]

[Event "Titled Tuesday Blitz April 4 Early 2023"]
[White "Kalajzic, Ivan"]
[Black "Shuvalov, Evgenij"]
[WhiteFideId "14506378"]
[BlackFideId "4187237"]
[WhiteElo "2203"]
[BlackElo "2080"]
[Result "0-1"]
[Round "09"]
[TimeControl "180+2"]
[Date "2023.04.04"]
[WhiteClock "0:00:38"]
[BlackClock "0:01:18"]

1. d4 {[%clk 0:03:00]}  Nf6 {[%clk 0:02:37]} 2. Nc3 {[%clk 0:03:00]}  e6 {[%clk 0:02:35]} 3. Bg5 {[%clk 0:03:00]}  a6 {[%clk 0:02:34]} 4. e4 {[%clk 0:03:00]}  d5 {[%clk 0:02:31]} 5. exd5 {[%clk 0:02:58]}  exd5 {[%clk 0:02:31]} 6. a3 {[%clk 0:02:58]}  Be7 {[%clk 0:02:29]} 7. Bd3 {[%clk 0:02:57]}  Nc6 {[%clk 0:02:26]} 8. Nce2 {[%clk 0:02:54]}  Bg4 {[%clk 0:02:25]} 9. h3 {[%clk 0:02:49]}  Bh5 {[%clk 0:02:25]} 10. g4 {[%clk 0:02:49]}  Bg6 {[%clk 0:02:25]} 11. Nf3 {[%clk 0:02:42]}  Ne4 {[%clk 0:02:22]} 12. Bxe7 {[%clk 0:02:41]}  Nxe7 {[%clk 0:02:23]} 13. Ne5 {[%clk 0:02:38]}  f6 {[%clk 0:02:18]} 14. Nxg6 {[%clk 0:02:38]}  Nxg6 {[%clk 0:02:19]} 15. f3 {[%clk 0:02:34]}  Nd6 {[%clk 0:02:17]} 16. Qd2 {[%clk 0:02:31]}  Nc4 {[%clk 0:02:10]} 17. Bxc4 {[%clk 0:02:29]}  dxc4 {[%clk 0:02:11]} 18. h4 {[%clk 0:02:25]}  Qd5 {[%clk 0:02:08]} 19. Qe3+ {[%clk 0:02:19]}  Kf7 {[%clk 0:02:04]} 20. O-O-O {[%clk 0:02:16]}  Rhe8 {[%clk 0:02:03]} 21. Qf2 {[%clk 0:02:17]}  b5 {[%clk 0:02:01]} 22. h5 {[%clk 0:02:14]}  Ne7 {[%clk 0:01:59]} 23. Nf4 {[%clk 0:02:07]}  Qd6 {[%clk 0:01:58]} 24. Qd2 {[%clk 0:02:03]}  c3 {[%clk 0:01:56]} 25. bxc3 {[%clk 0:01:53]}  Qxa3+ {[%clk 0:01:56]} 26. Kb1 {[%clk 0:01:53]}  Rab8 {[%clk 0:01:52]} 27. Rhe1 {[%clk 0:01:48]}  b4 {[%clk 0:01:51]} 28. c4 {[%clk 0:01:43]}  b3 {[%clk 0:01:51]} 29. c3 {[%clk 0:01:43]}  b2 {[%clk 0:01:51]} 30. Kc2 {[%clk 0:01:34]}  Qa4+ {[%clk 0:01:46]} 31. Kd3 {[%clk 0:01:34]}  Nc6 {[%clk 0:01:37]} 32. Rxe8 {[%clk 0:01:23]}  Rxe8 {[%clk 0:01:38]} 33. Rb1 {[%clk 0:01:17]}  Na5 {[%clk 0:01:29]} 34. Rxb2 {[%clk 0:00:54]}  Nxc4 {[%clk 0:01:20]} 35. Qc2 {[%clk 0:00:38]}  Re3# {[%clk 0:01:18]} 0-1


[Site "https://www.chess.com"]

[Event "Titled Tuesday Blitz April 4 Early 2023"]
[White "Nugumanov, Bakhtiyar"]
[Black "Baches Garcia, Guillermo"]
[WhiteFideId "13701797"]
[BlackFideId "2209764"]
[WhiteElo "2209"]
[BlackElo "2443"]
[Result "0-1"]
[Round "09"]
[TimeControl "180+2"]
[Date "2023.04.04"]
[WhiteClock "0:00:02"]
[BlackClock "0:00:06"]

1. Nf3 {[%clk 0:03:00]}  d5 {[%clk 0:02:59]} 2. g3 {[%clk 0:02:59]}  g6 {[%clk 0:02:59]} 3. Bg2 {[%clk 0:03:00]}  Bg7 {[%clk 0:03:00]} 4. c4 {[%clk 0:02:59]}  dxc4 {[%clk 0:02:59]} 5. Na3 {[%clk 0:02:54]}  e5 {[%clk 0:02:53]} 6. Nxc4 {[%clk 0:02:51]}  Nc6 {[%clk 0:02:53]} 7. O-O {[%clk 0:02:50]}  Nge7 {[%clk 0:02:47]} 8. d3 {[%clk 0:02:41]}  O-O {[%clk 0:02:47]} 9. Bd2 {[%clk 0:02:09]}  a5 {[%clk 0:02:40]} 10. Rc1 {[%clk 0:02:08]}  h6 {[%clk 0:02:36]} 11. Bc3 {[%clk 0:02:04]}  Nd4 {[%clk 0:02:25]} 12. e3 {[%clk 0:01:57]}  Nxf3+ {[%clk 0:02:21]} 13. Bxf3 {[%clk 0:01:58]}  f6 {[%clk 0:02:14]} 14. d4 {[%clk 0:01:55]}  exd4 {[%clk 0:02:08]} 15. Bxd4 {[%clk 0:01:48]}  Ra6 {[%clk 0:01:52]} 16. Qb3 {[%clk 0:01:33]}  a4 {[%clk 0:01:50]} 17. Qc2 {[%clk 0:01:10]}  Bf5 {[%clk 0:01:43]} 18. Qe2 {[%clk 0:01:03]}  c6 {[%clk 0:01:33]} 19. Rfd1 {[%clk 0:01:02]}  Qb8 {[%clk 0:01:23]} 20. Bc5 {[%clk 0:01:01]}  Re8 {[%clk 0:01:08]} 21. Nd6 {[%clk 0:01:01]}  Rd8 {[%clk 0:01:07]} 22. Qc4+ {[%clk 0:00:54]}  Kh7 {[%clk 0:01:02]} 23. e4 {[%clk 0:00:29]}  Bh3 {[%clk 0:00:57]} 24. Qf7 {[%clk 0:00:23]}  Ng8 {[%clk 0:00:50]} 25. Nxb7 {[%clk 0:00:20]}  Rxd1+ {[%clk 0:00:33]} 26. Rxd1 {[%clk 0:00:21]}  Ra7 {[%clk 0:00:30]} 27. Rd7 {[%clk 0:00:13]}  Bxd7 {[%clk 0:00:29]} 28. Bxa7 {[%clk 0:00:11]}  Qxb7 {[%clk 0:00:29]} 29. Bc5 {[%clk 0:00:10]}  Bc8 {[%clk 0:00:26]} 30. Qe8 {[%clk 0:00:06]}  Qd7 {[%clk 0:00:24]} 31. Qxd7 {[%clk 0:00:04]}  Bxd7 {[%clk 0:00:25]} 32. Bd1 {[%clk 0:00:04]}  f5 {[%clk 0:00:24]} 33. exf5 {[%clk 0:00:04]}  gxf5 {[%clk 0:00:21]} 34. Ba3 {[%clk 0:00:03]}  c5 {[%clk 0:00:21]} 35. Bxc5 {[%clk 0:00:03]}  Bxb2 {[%clk 0:00:20]} 36. Bc2 {[%clk 0:00:03]}  a3 {[%clk 0:00:20]} 37. g4 {[%clk 0:00:03]}  Kg6 {[%clk 0:00:20]} 38. gxf5+ {[%clk 0:00:04]}  Bxf5 {[%clk 0:00:20]} 39. Bb3 {[%clk 0:00:04]}  Nf6 {[%clk 0:00:18]} 40. Bf8 {[%clk 0:00:02]}  Ne4 {[%clk 0:00:15]} 41. Bb4 {[%clk 0:00:03]}  Nc3 {[%clk 0:00:10]} 42. f3 {[%clk 0:00:02]}  Bb1 {[%clk 0:00:09]} 43. Bxc3 {[%clk 0:00:02]}  Bxc3 {[%clk 0:00:09]} 44. Kf2 {[%clk 0:00:02]}  Kg5 {[%clk 0:00:08]} 45. Kg3 {[%clk 0:00:02]}  Be5+ {[%clk 0:00:08]} 46. Kg2 {[%clk 0:00:02]}  Bf4 {[%clk 0:00:08]} 47. Kf2 {[%clk 0:00:02]}  Kf6 {[%clk 0:00:07]} 48. Kg2 {[%clk 0:00:02]}  Bf5 {[%clk 0:00:07]} 49. Bc4 {[%clk 0:00:02]}  Be6 {[%clk 0:00:06]} 50. Bb3 {[%clk 0:00:02]}  Bxb3 {[%clk 0:00:06]} 0-1


[Site "https://www.chess.com"]

[Event "Titled Tuesday Blitz April 4 Early 2023"]
[White "Bas Mas, Jose Joaquin"]
[Black "Kiseleva, Arina"]
[WhiteFideId "22219064"]
[BlackFideId "4164989"]
[WhiteElo "2233"]
[BlackElo "1708"]
[Result "1-0"]
[Round "09"]
[TimeControl "180+2"]
[Date "2023.04.04"]
[WhiteClock "0:01:14"]
[BlackClock "0:00:07"]

1. e4 {[%clk 0:03:00]}  c6 {[%clk 0:02:59]} 2. d4 {[%clk 0:03:00]}  d5 {[%clk 0:03:00]} 3. f3 {[%clk 0:03:01]}  e6 {[%clk 0:02:59]} 4. Nc3 {[%clk 0:03:00]}  Bb4 {[%clk 0:02:59]} 5. a3 {[%clk 0:03:00]}  Bxc3+ {[%clk 0:02:55]} 6. bxc3 {[%clk 0:03:01]}  Ne7 {[%clk 0:02:54]} 7. Nh3 {[%clk 0:02:59]}  Qa5 {[%clk 0:02:44]} 8. Bb2 {[%clk 0:02:58]}  Qa4 {[%clk 0:02:23]} 9. Bd3 {[%clk 0:02:57]}  b6 {[%clk 0:02:21]} 10. O-O {[%clk 0:02:56]}  Ba6 {[%clk 0:02:21]} 11. Qe2 {[%clk 0:02:24]}  Bxd3 {[%clk 0:02:12]} 12. cxd3 {[%clk 0:02:25]}  O-O {[%clk 0:02:07]} 13. c4 {[%clk 0:02:22]}  Re8 {[%clk 0:01:56]} 14. f4 {[%clk 0:02:21]}  Nd7 {[%clk 0:01:54]} 15. Kh1 {[%clk 0:02:16]}  b5 {[%clk 0:01:35]} 16. Rac1 {[%clk 0:02:09]}  Rab8 {[%clk 0:01:29]} 17. cxd5 {[%clk 0:02:04]}  cxd5 {[%clk 0:01:24]} 18. Rc7 {[%clk 0:02:05]}  Red8 {[%clk 0:01:12]} 19. f5 {[%clk 0:02:04]}  b4 {[%clk 0:01:03]} 20. fxe6 {[%clk 0:02:01]}  bxa3 {[%clk 0:00:43]} 21. Ba1 {[%clk 0:01:28]}  fxe6 {[%clk 0:00:35]} 22. Ng5 {[%clk 0:01:28]}  a2 {[%clk 0:00:16]} 23. exd5 {[%clk 0:01:21]}  Qa6 {[%clk 0:00:07]} 24. Rc6 {[%clk 0:01:14]} 1-0


[Site "https://www.chess.com"]

[Event "Titled Tuesday Blitz April 4 Early 2023"]
[White "Kornyukov, Alexey"]
[Black "Matveeva, Olga"]
[WhiteFideId "4150457"]
[BlackFideId "24107018"]
[WhiteElo "2352"]
[BlackElo "2056"]
[Result "0-1"]
[Round "09"]
[TimeControl "180+2"]
[Date "2023.04.04"]
[WhiteClock "0:00:07"]
[BlackClock "0:00:10"]

1. e4 {[%clk 0:03:00]}  e6 {[%clk 0:03:00]} 2. d4 {[%clk 0:03:00]}  d5 {[%clk 0:03:00]} 3. Nc3 {[%clk 0:02:58]}  Nf6 {[%clk 0:03:00]} 4. e5 {[%clk 0:02:57]}  Nfd7 {[%clk 0:03:00]} 5. Nf3 {[%clk 0:02:55]}  c5 {[%clk 0:03:00]} 6. Bb5 {[%clk 0:02:52]}  Nc6 {[%clk 0:02:55]} 7. O-O {[%clk 0:02:50]}  Be7 {[%clk 0:02:50]} 8. Bxc6 {[%clk 0:02:49]}  bxc6 {[%clk 0:02:49]} 9. Be3 {[%clk 0:02:44]}  O-O {[%clk 0:02:47]} 10. dxc5 {[%clk 0:02:41]}  Nxc5 {[%clk 0:02:46]} 11. Nd4 {[%clk 0:02:38]}  Qc7 {[%clk 0:02:37]} 12. f4 {[%clk 0:02:14]}  Rb8 {[%clk 0:02:35]} 13. Rb1 {[%clk 0:02:08]}  Ba6 {[%clk 0:02:30]} 14. Rf3 {[%clk 0:02:03]}  Ne4 {[%clk 0:02:14]} 15. Nxe4 {[%clk 0:01:53]}  dxe4 {[%clk 0:02:15]} 16. Rh3 {[%clk 0:01:52]}  g6 {[%clk 0:02:04]} 17. f5 {[%clk 0:01:45]}  exf5 {[%clk 0:02:02]} 18. Nxf5 {[%clk 0:01:43]}  Rfd8 {[%clk 0:01:46]} 19. Nh6+ {[%clk 0:01:31]}  Kg7 {[%clk 0:01:42]} 20. Bd4 {[%clk 0:01:25]}  c5 {[%clk 0:01:36]} 21. Nf5+ {[%clk 0:01:03]}  Kh8 {[%clk 0:01:14]} 22. Nh6 {[%clk 0:00:50]}  Rxd4 {[%clk 0:01:10]} 23. Nxf7+ {[%clk 0:00:44]}  Kg7 {[%clk 0:01:10]} 24. Qc1 {[%clk 0:00:42]}  Kxf7 {[%clk 0:01:01]} 25. Rxh7+ {[%clk 0:00:40]}  Ke6 {[%clk 0:00:59]} 26. Qh6 {[%clk 0:00:38]}  Rg8 {[%clk 0:00:49]} 27. Qh3+ {[%clk 0:00:33]}  Kd5 {[%clk 0:00:43]} 28. c4+ {[%clk 0:00:24]}  Bxc4 {[%clk 0:00:40]} 29. b3 {[%clk 0:00:15]}  Bd3 {[%clk 0:00:39]} 30. Rc1 {[%clk 0:00:13]}  Re8 {[%clk 0:00:17]} 31. Qg4 {[%clk 0:00:13]}  Kc6 {[%clk 0:00:14]} 32. Qxg6+ {[%clk 0:00:13]}  Kd7 {[%clk 0:00:13]} 33. e6+ {[%clk 0:00:13]}  Kd8 {[%clk 0:00:13]} 34. Qf7 {[%clk 0:00:13]}  Qe5 {[%clk 0:00:12]} 35. Re1 {[%clk 0:00:11]}  e3 {[%clk 0:00:12]} 36. h4 {[%clk 0:00:10]}  e2 {[%clk 0:00:12]} 37. Rh5 {[%clk 0:00:09]}  Qe3+ {[%clk 0:00:12]} 38. Kh1 {[%clk 0:00:09]}  Rg4 {[%clk 0:00:11]} 39. Rd5+ {[%clk 0:00:08]}  Kc7 {[%clk 0:00:11]} 40. Rd7+ {[%clk 0:00:08]}  Kc6 {[%clk 0:00:11]} 41. Qxe8 {[%clk 0:00:07]}  Rxh4# {[%clk 0:00:10]} 0-1


[Site "https://www.chess.com"]

[Event "Titled Tuesday Blitz April 4 Early 2023"]
[White "Iskusnyh, Sergei"]
[Black "Zaichenko, Daria"]
[WhiteFideId "4120027"]
[BlackFideId "4197453"]
[WhiteElo "2492"]
[BlackElo "2039"]
[Result "1-0"]
[Round "09"]
[TimeControl "180+2"]
[Date "2023.04.04"]
[WhiteClock "0:00:08"]
[BlackClock "0:00:05"]

1. d4 {[%clk 0:03:00]}  d5 {[%clk 0:02:59]} 2. c4 {[%clk 0:03:01]}  e6 {[%clk 0:03:00]} 3. Nf3 {[%clk 0:03:01]}  Nf6 {[%clk 0:02:59]} 4. g3 {[%clk 0:03:01]}  Be7 {[%clk 0:03:00]} 5. Bg2 {[%clk 0:03:02]}  O-O {[%clk 0:03:00]} 6. O-O {[%clk 0:03:02]}  dxc4 {[%clk 0:03:00]} 7. Qa4 {[%clk 0:03:02]}  a6 {[%clk 0:02:56]} 8. Qxc4 {[%clk 0:03:03]}  b5 {[%clk 0:02:56]} 9. Qc2 {[%clk 0:03:03]}  Bb7 {[%clk 0:02:56]} 10. Bd2 {[%clk 0:03:03]}  Ra7 {[%clk 0:02:50]} 11. Rc1 {[%clk 0:02:57]}  Be4 {[%clk 0:02:49]} 12. Qd1 {[%clk 0:02:56]}  Nbd7 {[%clk 0:02:45]} 13. Ba5 {[%clk 0:02:54]}  Nd5 {[%clk 0:02:36]} 14. Nbd2 {[%clk 0:02:52]}  Bg6 {[%clk 0:02:35]} 15. a3 {[%clk 0:02:38]}  N5b6 {[%clk 0:02:20]} 16. Rc6 {[%clk 0:02:07]}  Na4 {[%clk 0:02:09]} 17. b3 {[%clk 0:02:04]}  Nab6 {[%clk 0:02:05]} 18. Rac1 {[%clk 0:02:03]}  Nb8 {[%clk 0:02:01]} 19. Ne5 {[%clk 0:01:25]}  Bxa3 {[%clk 0:01:56]} 20. Ra1 {[%clk 0:00:28]}  Bb2 {[%clk 0:01:42]} 21. Ra2 {[%clk 0:00:21]}  Bxd4 {[%clk 0:01:37]} 22. Nxg6 {[%clk 0:00:21]}  fxg6 {[%clk 0:01:33]} 23. Rc1 {[%clk 0:00:14]}  Rxf2 {[%clk 0:01:31]} 24. Kh1 {[%clk 0:00:14]}  Be3 {[%clk 0:01:11]} 25. Ne4 {[%clk 0:00:14]}  Qxd1+ {[%clk 0:01:05]} 26. Rxd1 {[%clk 0:00:14]}  Rf8 {[%clk 0:01:03]} 27. Rc2 {[%clk 0:00:14]}  Nd5 {[%clk 0:01:00]} 28. Bh3 {[%clk 0:00:12]}  Re8 {[%clk 0:00:49]} 29. Nc5 {[%clk 0:00:12]}  Nc6 {[%clk 0:00:43]} 30. Bxe6+ {[%clk 0:00:10]}  Rxe6 {[%clk 0:00:37]} 31. Nxe6 {[%clk 0:00:10]}  Ndb4 {[%clk 0:00:18]} 32. Rc3 {[%clk 0:00:08]}  Nxa5 {[%clk 0:00:08]} 33. Rxe3 {[%clk 0:00:07]}  h5 {[%clk 0:00:06]} 34. Rd8+ {[%clk 0:00:06]}  Kh7 {[%clk 0:00:05]} 35. Ng5+ {[%clk 0:00:06]}  Kh6 {[%clk 0:00:05]} 36. Nf7+ {[%clk 0:00:07]}  Kh7 {[%clk 0:00:05]} 37. Rh8# {[%clk 0:00:08]} 1-0


[Site "https://www.chess.com"]